[Event "*** Titled Tuesday Blitz"]
[Site "Chess.com"]
[Date "2020.04.07"]
[Round "3"]
[White "AliMentor20"]
[Black "StarkAst"]
[Result "1-0"]
[WhiteElo "2396"]
[BlackElo "2592"]
[TimeControl "180+1"]
[EndTime "13:30:03 PDT"]
[Termination "AliMentor20 won by resignation"]

1. e4 {[%clk 0:02:47.5]} 1... e6 {[%clk 0:02:54.5]} 2. d4 {[%clk 0:02:47.2]}
2... d5 {[%clk 0:02:54.7]} 3. Nc3 {[%clk 0:02:46.9]} 3... Bb4 {[%clk 0:02:54.5]}
4. e5 {[%clk 0:02:47]} 4... c5 {[%clk 0:02:54.7]} 5. Bd2 {[%clk 0:02:47.6]} 5...
Nh6 {[%clk 0:02:54.5]} 6. Nb5 {[%clk 0:02:42.5]} 6... Bxd2+ {[%clk 0:02:54.5]}
7. Qxd2 {[%clk 0:02:43.4]} 7... O-O {[%clk 0:02:55.4]} 8. dxc5 {[%clk
0:02:41.5]} 8... Nc6 {[%clk 0:02:54]} 9. Nf3 {[%clk 0:02:40.4]} 9... f6 {[%clk
0:02:53.8]} 10. exf6 {[%clk 0:02:39.4]} 10... Qxf6 {[%clk 0:02:53.3]} 11. O-O-O
{[%clk 0:02:39.1]} 11... b6 {[%clk 0:02:43.6]} 12. cxb6 {[%clk 0:02:17.7]} 12...
axb6 {[%clk 0:02:44.5]} 13. Qc3 {[%clk 0:02:17.4]} 13... Rxa2 {[%clk 0:02:09.8]}
14. Kb1 {[%clk 0:02:03.8]} 14... Qxc3 {[%clk 0:02:06.4]} 15. Nxc3 {[%clk
0:02:01.8]} 15... Ra5 {[%clk 0:02:04.2]} 16. Bb5 {[%clk 0:01:57.7]} 16... Bd7
{[%clk 0:01:58.6]} 17. Rhe1 {[%clk 0:01:48.2]} 17... Rfa8 {[%clk 0:01:33]} 18.
b3 {[%clk 0:01:47.9]} 18... Ng4 {[%clk 0:01:20.8]} 19. Bxc6 {[%clk 0:01:16]}
19... Bxc6 {[%clk 0:01:20.1]} 20. Rxe6 {[%clk 0:01:16]} 20... Nxf2 {[%clk
0:01:07.5]} 21. Rd2 {[%clk 0:01:16]} 21... Ne4 {[%clk 0:01:05.9]} 22. Nxe4
{[%clk 0:01:15.5]} 22... dxe4 {[%clk 0:01:05.8]} 23. Rxc6 {[%clk 0:01:15.2]}
23... exf3 {[%clk 0:01:04.5]} 24. gxf3 {[%clk 0:01:14.4]} 24... b5 {[%clk
0:00:57.2]} 25. Rb6 {[%clk 0:01:06.6]} 25... h6 {[%clk 0:00:50.1]} 26. Rb7
{[%clk 0:01:03]} 26... Kh8 {[%clk 0:00:39.6]} 27. Rdd7 {[%clk 0:01:00.3]} 27...
Ra1+ {[%clk 0:00:37.7]} 28. Kb2 {[%clk 0:00:59.8]} 28... R1a2+ {[%clk
0:00:38.4]} 29. Kc3 {[%clk 0:00:58.7]} 29... Rc8+ {[%clk 0:00:38.2]} 30. Rdc7
{[%clk 0:00:57.8]} 30... Rxc7+ {[%clk 0:00:36.4]} 31. Rxc7 {[%clk 0:00:57.4]}
31... Ra6 {[%clk 0:00:29.7]} 32. Kb4 {[%clk 0:00:55]} 32... Rf6 {[%clk
0:00:29.8]} 33. Kxb5 {[%clk 0:00:53.5]} 33... Rxf3 {[%clk 0:00:29.7]} 34. b4
{[%clk 0:00:52.3]} 34... h5 {[%clk 0:00:28.3]} 35. c4 {[%clk 0:00:51.6]} 35...
h4 {[%clk 0:00:27.7]} 36. Re7 {[%clk 0:00:47.7]} 36... h3 {[%clk 0:00:26.9]} 37.
Re2 {[%clk 0:00:47.2]} 37... g5 {[%clk 0:00:23.9]} 38. c5 {[%clk 0:00:45]} 38...
g4 {[%clk 0:00:24.1]} 39. c6 {[%clk 0:00:42.4]} 39... Rc3 {[%clk 0:00:23.9]} 40.
Kb6 {[%clk 0:00:42.1]} 40... Kg7 {[%clk 0:00:23.7]} 41. b5 {[%clk 0:00:41.9]}
41... g3 {[%clk 0:00:15.6]} 42. hxg3 {[%clk 0:00:40.8]} 42... Rxg3 {[%clk
0:00:16.1]} 43. c7 {[%clk 0:00:40.4]} 43... Rg2 {[%clk 0:00:15.1]} 44. c8=Q
{[%clk 0:00:36]} 44... Rxe2 {[%clk 0:00:14.2]} 45. Qxh3 {[%clk 0:00:35]} 1-0

[Event "*** Titled Tuesday Blitz"]
[Site "Chess.com"]
[Date "2020.04.07"]
[Round "3"]
[White "Martins-BR"]
[Black "Mizner"]
[Result "0-1"]
[WhiteElo "2285"]
[BlackElo "2555"]
[TimeControl "180+1"]
[EndTime "13:30:03 PDT"]
[Termination "Mizner won by resignation"]

1. e4 {[%clk 0:03:00.9]} 1... e6 {[%clk 0:03:00.1]} 2. d4 {[%clk 0:03:00.2]}
2... d5 {[%clk 0:03:00.7]} 3. Nc3 {[%clk 0:03:00.1]} 3... Nf6 {[%clk 0:03:00.9]}
4. Bg5 {[%clk 0:02:58.8]} 4... dxe4 {[%clk 0:02:58.9]} 5. Nxe4 {[%clk
0:02:57.7]} 5... Nbd7 {[%clk 0:02:59.5]} 6. Nf3 {[%clk 0:02:53.2]} 6... Be7
{[%clk 0:02:54.6]} 7. Bxf6 {[%clk 0:02:51.8]} 7... Nxf6 {[%clk 0:02:51.8]} 8.
Nxf6+ {[%clk 0:02:48.9]} 8... Bxf6 {[%clk 0:02:51.3]} 9. Bd3 {[%clk 0:02:48.9]}
9... c5 {[%clk 0:02:50.3]} 10. Bb5+ {[%clk 0:02:36.9]} 10... Bd7 {[%clk
0:02:47.8]} 11. Bxd7+ {[%clk 0:02:35.7]} 11... Qxd7 {[%clk 0:02:48.7]} 12. Qd3
{[%clk 0:02:16.5]} 12... cxd4 {[%clk 0:02:42.1]} 13. O-O-O {[%clk 0:02:16.2]}
13... Rd8 {[%clk 0:02:34.9]} 14. h4 {[%clk 0:02:10.1]} 14... Qd5 {[%clk
0:02:20.3]} 15. Kb1 {[%clk 0:02:09]} 15... h6 {[%clk 0:02:14.2]} 16. Nd2 {[%clk
0:02:05.3]} 16... O-O {[%clk 0:02:13.1]} 17. Ne4 {[%clk 0:02:04]} 17... Be7
{[%clk 0:02:13.2]} 18. g4 {[%clk 0:02:03.5]} 18... f5 {[%clk 0:02:07.1]} 19.
gxf5 {[%clk 0:02:02.3]} 19... exf5 {[%clk 0:02:07.3]} 20. Ng3 {[%clk 0:02:00.4]}
20... Bd6 {[%clk 0:01:34.3]} 21. Nh5 {[%clk 0:01:59.4]} 21... Qf7 {[%clk
0:01:24.3]} 22. Qf3 {[%clk 0:01:58.3]} 22... g6 {[%clk 0:01:13.2]} 23. Rhg1
{[%clk 0:01:54.5]} 23... Kh7 {[%clk 0:01:13.2]} 24. Nf4 {[%clk 0:01:45.5]} 24...
Bxf4 {[%clk 0:01:13.2]} 25. Qxf4 {[%clk 0:01:45.6]} 25... Qd5 {[%clk 0:01:07.1]}
26. Rg3 {[%clk 0:01:35.2]} 26... Rfe8 {[%clk 0:01:04.4]} 27. h5 {[%clk
0:01:10.5]} 27... g5 {[%clk 0:01:03.9]} 28. Qd2 {[%clk 0:01:08.7]} 28... Re4
{[%clk 0:00:55.9]} 29. a3 {[%clk 0:01:02.7]} 29... Rde8 {[%clk 0:00:55.1]} 30.
Rd3 {[%clk 0:00:56]} 30... Re2 {[%clk 0:00:51.1]} 31. Qb4 {[%clk 0:00:55.7]}
31... Qc6 {[%clk 0:00:45.3]} 32. Qb3 {[%clk 0:00:50.4]} 32... Qe6 {[%clk
0:00:29.6]} 33. Qxb7+ {[%clk 0:00:40.2]} 33... Re7 {[%clk 0:00:28.7]} 34. Qb5
{[%clk 0:00:33]} 34... Qc8 {[%clk 0:00:16.5]} 35. Rc1 {[%clk 0:00:30]} 35...
Rxf2 {[%clk 0:00:15.5]} 36. Rxd4 {[%clk 0:00:27.5]} 36... g4 {[%clk 0:00:13.7]}
37. Rc4 {[%clk 0:00:24.4]} 37... Qe6 {[%clk 0:00:13.1]} 38. Rc6 {[%clk
0:00:21.4]} 38... Qe2 {[%clk 0:00:10.6]} 39. Qa6 {[%clk 0:00:14.4]} 39... Qe3
{[%clk 0:00:10.9]} 40. Qc8 {[%clk 0:00:09.4]} 40... Qxc1+ {[%clk 0:00:10.4]} 0-1

[Event "*** Titled Tuesday Blitz"]
[Site "Chess.com"]
[Date "2020.04.07"]
[Round "3"]
[White "deBaller"]
[Black "TheKingDoctor"]
[Result "0-1"]
[WhiteElo "2331"]
[BlackElo "2108"]
[TimeControl "180+1"]
[EndTime "13:30:04 PDT"]
[Termination "TheKingDoctor won by checkmate"]

1. e4 {[%clk 0:03:00.9]} 1... e5 {[%clk 0:02:25]} 2. Nf3 {[%clk 0:03:00.6]} 2...
Nc6 {[%clk 0:02:23.5]} 3. d4 {[%clk 0:03:00.2]} 3... exd4 {[%clk 0:02:22.9]} 4.
Bc4 {[%clk 0:03:00.3]} 4... Bc5 {[%clk 0:02:18]} 5. c3 {[%clk 0:03:00.1]} 5...
Nf6 {[%clk 0:02:17.7]} 6. e5 {[%clk 0:03:00.5]} 6... d5 {[%clk 0:02:17.1]} 7.
Bb5 {[%clk 0:03:00.8]} 7... Ne4 {[%clk 0:02:16.6]} 8. cxd4 {[%clk 0:03:01]} 8...
Bb4+ {[%clk 0:01:28.4]} 9. Nbd2 {[%clk 0:03:00.5]} 9... Bxd2+ {[%clk 0:01:29]}
10. Bxd2 {[%clk 0:03:00.9]} 10... O-O {[%clk 0:01:29.6]} 11. Bxc6 {[%clk
0:02:55]} 11... bxc6 {[%clk 0:01:30.5]} 12. O-O {[%clk 0:02:55.9]} 12... f6
{[%clk 0:01:31.2]} 13. h3 {[%clk 0:02:48.5]} 13... Ba6 {[%clk 0:01:30.2]} 14.
Re1 {[%clk 0:02:43.2]} 14... fxe5 {[%clk 0:01:30.7]} 15. Nxe5 {[%clk 0:02:22.2]}
15... Rxf2 {[%clk 0:01:27.2]} 16. Rxe4 {[%clk 0:02:15.6]} 16... Rf1+ {[%clk
0:01:27.4]} 17. Qxf1 {[%clk 0:02:11.2]} 17... Bxf1 {[%clk 0:01:28.3]} 18. Rg4
{[%clk 0:02:07.7]} 18... Be2 {[%clk 0:01:24]} 19. Rg3 {[%clk 0:02:07.3]} 19...
Qe8 {[%clk 0:01:18.8]} 20. Re1 {[%clk 0:02:04.6]} 20... Bh5 {[%clk 0:01:17.8]}
21. Ng6 {[%clk 0:01:55.5]} 21... Qxe1+ {[%clk 0:01:14.5]} 22. Bxe1 {[%clk
0:01:55.1]} 22... Bxg6 {[%clk 0:01:15.4]} 23. Rc3 {[%clk 0:01:51.4]} 23... Rb8
{[%clk 0:01:14.7]} 24. b3 {[%clk 0:01:48.4]} 24... Be8 {[%clk 0:01:13.7]} 25.
Rc5 {[%clk 0:01:44.6]} 25... Kf7 {[%clk 0:01:10.8]} 26. Bg3 {[%clk 0:01:35.9]}
26... Rb7 {[%clk 0:01:08.9]} 27. Kf2 {[%clk 0:01:35.1]} 27... Ke6 {[%clk
0:00:58]} 28. Ke3 {[%clk 0:01:34.6]} 28... Kd7 {[%clk 0:00:55.9]} 29. Be5 {[%clk
0:01:34.1]} 29... g6 {[%clk 0:00:52.3]} 30. Ra5 {[%clk 0:01:33.7]} 30... Bf7
{[%clk 0:00:52.3]} 31. Kf4 {[%clk 0:01:32.2]} 31... Be6 {[%clk 0:00:52]} 32. Kg5
{[%clk 0:01:26.3]} 32... Bf5 {[%clk 0:00:47.1]} 33. Kh6 {[%clk 0:01:23.4]} 33...
Be4 {[%clk 0:00:47.1]} 34. g3 {[%clk 0:01:23.4]} 34... Ke6 {[%clk 0:00:46.8]}
35. Ra6 {[%clk 0:01:18.6]} 35... Bg2 {[%clk 0:00:43.8]} 36. h4 {[%clk
0:01:16.4]} 36... Kd7 {[%clk 0:00:38.7]} 37. Kxh7 {[%clk 0:01:15.1]} 37... Be4
{[%clk 0:00:39.3]} 38. Kg7 {[%clk 0:01:15.3]} 38... Bf5 {[%clk 0:00:38.9]} 39.
Kf6 {[%clk 0:01:14.1]} 39... Be4 {[%clk 0:00:39.2]} 40. g4 {[%clk 0:01:14.3]}
40... Bd3 {[%clk 0:00:38.7]} 41. h5 {[%clk 0:01:11.7]} 41... gxh5 {[%clk
0:00:37.5]} 42. gxh5 {[%clk 0:01:12.4]} 42... Bxa6 {[%clk 0:00:33.3]} 43. h6
{[%clk 0:01:05.3]} 43... Bd3 {[%clk 0:00:33.8]} 44. Kg7 {[%clk 0:01:04]} 44...
Rb6 {[%clk 0:00:33.4]} 45. a4 {[%clk 0:00:54.1]} 45... Rxb3 {[%clk 0:00:29.9]}
46. h7 {[%clk 0:00:55]} 46... Bxh7 {[%clk 0:00:29.3]} 47. Kxh7 {[%clk
0:00:55.9]} 47... Ra3 {[%clk 0:00:30.2]} 48. Kg6 {[%clk 0:00:56.7]} 48... Rxa4
{[%clk 0:00:30.7]} 49. Kf5 {[%clk 0:00:57.5]} 49... Rb4 {[%clk 0:00:31.1]} 50.
Kf4 {[%clk 0:00:57]} 50... a5 {[%clk 0:00:31.7]} 51. Ke3 {[%clk 0:00:57.9]}
51... a4 {[%clk 0:00:32.3]} 52. Kd2 {[%clk 0:00:58.7]} 52... a3 {[%clk
0:00:32.9]} 53. Kc3 {[%clk 0:00:58.7]} 53... Rb5 {[%clk 0:00:32.3]} 54. Bxc7
{[%clk 0:00:59.6]} 54... a2 {[%clk 0:00:32.6]} 55. Bf4 {[%clk 0:01:00.4]} 55...
a1=Q+ {[%clk 0:00:32.4]} 56. Kd3 {[%clk 0:01:01]} 56... Qa3+ {[%clk 0:00:31.9]}
57. Ke2 {[%clk 0:01:01.9]} 57... Rb2+ {[%clk 0:00:32]} 58. Bd2 {[%clk
0:01:02.8]} 58... Qc3 {[%clk 0:00:32.3]} 59. Kf1 {[%clk 0:01:01.8]} 59... Rxd2
{[%clk 0:00:32.8]} 60. Kg1 {[%clk 0:01:02.7]} 60... Qc1# {[%clk 0:00:33.2]} 0-1

[Event "*** Titled Tuesday Blitz"]
[Site "Chess.com"]
[Date "2020.04.07"]
[Round "3"]
[White "shanemelaughcm"]
[Black "MaxVavulin"]
[Result "0-1"]
[WhiteElo "2277"]
[BlackElo "2575"]
[TimeControl "180+1"]
[EndTime "13:30:05 PDT"]
[Termination "MaxVavulin won on time"]

1. e4 {[%clk 0:03:00.9]} 1... g6 {[%clk 0:03:00.9]} 2. d4 {[%clk 0:02:59.4]}
2... Bg7 {[%clk 0:03:01.8]} 3. Nc3 {[%clk 0:02:57.9]} 3... d6 {[%clk 0:03:02.7]}
4. Be3 {[%clk 0:02:56]} 4... a6 {[%clk 0:03:03.6]} 5. a4 {[%clk 0:02:52.8]} 5...
b5 {[%clk 0:03:04.5]} 6. axb5 {[%clk 0:02:51.3]} 6... Bb7 {[%clk 0:03:04.7]} 7.
bxa6 {[%clk 0:02:50.2]} 7... Nxa6 {[%clk 0:03:04.9]} 8. Bc4 {[%clk 0:02:31.2]}
8... Nf6 {[%clk 0:03:04.1]} 9. f3 {[%clk 0:02:29.3]} 9... O-O {[%clk 0:03:03]}
10. Nge2 {[%clk 0:02:26.3]} 10... Nb4 {[%clk 0:02:58.7]} 11. Rxa8 {[%clk
0:02:22]} 11... Qxa8 {[%clk 0:02:59.3]} 12. O-O {[%clk 0:02:20.2]} 12... d5
{[%clk 0:02:59.7]} 13. exd5 {[%clk 0:02:17.4]} 13... Nfxd5 {[%clk 0:03:00.3]}
14. Nxd5 {[%clk 0:02:17.2]} 14... Bxd5 {[%clk 0:03:01.1]} 15. Bxd5 {[%clk
0:02:17]} 15... Qxd5 {[%clk 0:03:01.8]} 16. c3 {[%clk 0:02:14.7]} 16... Nc6
{[%clk 0:03:00.2]} 17. Nf4 {[%clk 0:02:12]} 17... Qd6 {[%clk 0:02:55.3]} 18. Nd3
{[%clk 0:02:09.2]} 18... e6 {[%clk 0:02:39.1]} 19. Qd2 {[%clk 0:02:06.2]} 19...
Rb8 {[%clk 0:02:36.5]} 20. b4 {[%clk 0:02:00]} 20... Ne7 {[%clk 0:02:34.4]} 21.
Ra1 {[%clk 0:01:55.4]} 21... Nd5 {[%clk 0:02:33.6]} 22. Bf2 {[%clk 0:01:45.9]}
22... Qc6 {[%clk 0:02:30.1]} 23. Nc5 {[%clk 0:01:41.6]} 23... Rd8 {[%clk
0:02:29.3]} 24. Ra6 {[%clk 0:01:38.3]} 24... Qb5 {[%clk 0:02:28.8]} 25. Ra5
{[%clk 0:01:32.4]} 25... Qc4 {[%clk 0:02:28.7]} 26. Qd3 {[%clk 0:01:30.4]} 26...
Qxc3 {[%clk 0:02:19.6]} 27. Qxc3 {[%clk 0:01:24.9]} 27... Nxc3 {[%clk
0:02:20.5]} 28. Ra7 {[%clk 0:01:21.4]} 28... Nb5 {[%clk 0:02:13.1]} 29. Rb7
{[%clk 0:01:20.5]} 29... Nxd4 {[%clk 0:02:13.6]} 30. Rxc7 {[%clk 0:01:15.1]}
30... Ra8 {[%clk 0:02:11.7]} 31. Nd3 {[%clk 0:00:55.8]} 31... Ra1+ {[%clk
0:01:57.6]} 32. Ne1 {[%clk 0:00:48.9]} 32... Be5 {[%clk 0:01:45.3]} 33. Rc5
{[%clk 0:00:41.7]} 33... Bf6 {[%clk 0:01:40.3]} 34. Rc8+ {[%clk 0:00:21]} 34...
Kg7 {[%clk 0:01:37.6]} 35. Bxd4 {[%clk 0:00:21.1]} 35... Bxd4+ {[%clk
0:01:37.2]} 36. Kf1 {[%clk 0:00:21.9]} 36... Rb1 {[%clk 0:01:30.3]} 37. Rc4
{[%clk 0:00:19.3]} 37... Be5 {[%clk 0:01:23.9]} 38. Ke2 {[%clk 0:00:19.3]} 38...
Bxh2 {[%clk 0:01:22.8]} 39. Nd3 {[%clk 0:00:14.1]} 39... Bg3 {[%clk 0:01:19.8]}
40. Ke3 {[%clk 0:00:12.9]} 40... h5 {[%clk 0:01:17.6]} 41. Kd4 {[%clk
0:00:11.3]} 41... Bd6 {[%clk 0:01:08.4]} 42. Kc3 {[%clk 0:00:03.9]} 42... Rg1
{[%clk 0:01:06.6]} 43. Rc6 {[%clk 0:00:03.9]} 43... Bg3 {[%clk 0:00:58.8]} 44.
b5 {[%clk 0:00:03.9]} 44... Rxg2 {[%clk 0:00:58]} 45. b6 {[%clk 0:00:04.2]}
45... Rg1 {[%clk 0:00:44.2]} 46. b7 {[%clk 0:00:04.3]} 46... Rb1 {[%clk
0:00:43.3]} 47. Nb2 {[%clk 0:00:04.1]} 47... Be5+ {[%clk 0:00:42.2]} 48. Kc2
{[%clk 0:00:02.7]} 48... Rxb2+ {[%clk 0:00:42.4]} 0-1

[Event "*** Titled Tuesday Blitz"]
[Site "Chess.com"]
[Date "2020.04.07"]
[Round "3"]
[White "aloe_normansen"]
[Black "bait_or_mate"]
[Result "0-1"]
[WhiteElo "2167"]
[BlackElo "2519"]
[TimeControl "180+1"]
[EndTime "13:30:05 PDT"]
[Termination "bait_or_mate won by checkmate"]

1. e4 {[%clk 0:03:00.9]} 1... c5 {[%clk 0:02:59.6]} 2. Nf3 {[%clk 0:03:01.3]}
2... e6 {[%clk 0:02:59.5]} 3. d4 {[%clk 0:03:01.3]} 3... cxd4 {[%clk 0:03:00.4]}
4. Nxd4 {[%clk 0:03:01]} 4... Nc6 {[%clk 0:03:01]} 5. Nc3 {[%clk 0:02:59.2]}
5... Qc7 {[%clk 0:03:01.1]} 6. g3 {[%clk 0:02:58]} 6... a6 {[%clk 0:03:00.8]} 7.
Bg2 {[%clk 0:02:57.2]} 7... Nf6 {[%clk 0:03:00.5]} 8. O-O {[%clk 0:02:55.9]}
8... h5 {[%clk 0:02:56.7]} 9. h3 {[%clk 0:02:38.7]} 9... Bc5 {[%clk 0:02:53.7]}
10. Be3 {[%clk 0:02:35.1]} 10... Ne5 {[%clk 0:02:36.1]} 11. Qe2 {[%clk
0:02:24.6]} 11... Ba7 {[%clk 0:02:26.7]} 12. Rad1 {[%clk 0:02:20.6]} 12... O-O
{[%clk 0:02:20]} 13. Kh1 {[%clk 0:01:52.9]} 13... Nc4 {[%clk 0:02:11.3]} 14. Bc1
{[%clk 0:01:51.7]} 14... d6 {[%clk 0:02:08]} 15. b3 {[%clk 0:01:47.2]} 15... Na5
{[%clk 0:02:03.9]} 16. Bb2 {[%clk 0:01:44.7]} 16... Nc6 {[%clk 0:01:59.3]} 17.
Nxc6 {[%clk 0:01:35.7]} 17... bxc6 {[%clk 0:02:00.2]} 18. Na4 {[%clk 0:01:34.6]}
18... e5 {[%clk 0:01:51.5]} 19. c4 {[%clk 0:01:31.5]} 19... h4 {[%clk
0:01:25.1]} 20. g4 {[%clk 0:01:14.5]} 20... Nh7 {[%clk 0:01:24.9]} 21. Bc1
{[%clk 0:01:08.9]} 21... g5 {[%clk 0:01:19]} 22. Nb2 {[%clk 0:00:53.7]} 22...
Bd4 {[%clk 0:01:17.1]} 23. Nd3 {[%clk 0:00:52.8]} 23... c5 {[%clk 0:01:15.4]}
24. Ne1 {[%clk 0:00:49.9]} 24... f6 {[%clk 0:01:14.9]} 25. Nc2 {[%clk
0:00:49.6]} 25... a5 {[%clk 0:01:11.9]} 26. Ne3 {[%clk 0:00:47.9]} 26... Be6
{[%clk 0:01:11.4]} 27. Nd5 {[%clk 0:00:36.3]} 27... Qb7 {[%clk 0:01:09.5]} 28.
Be3 {[%clk 0:00:33.9]} 28... Rf7 {[%clk 0:01:09.3]} 29. Bxd4 {[%clk 0:00:26.5]}
29... cxd4 {[%clk 0:01:10.2]} 30. f3 {[%clk 0:00:25.9]} 30... Nf8 {[%clk
0:01:09.6]} 31. Qd3 {[%clk 0:00:25]} 31... Nd7 {[%clk 0:01:06.3]} 32. f4 {[%clk
0:00:23.1]} 32... gxf4 {[%clk 0:00:47.8]} 33. Nxf4 {[%clk 0:00:20.2]} 33... exf4
{[%clk 0:00:43.9]} 34. e5 {[%clk 0:00:20.2]} 34... Qb8 {[%clk 0:00:43.1]} 35.
Bxa8 {[%clk 0:00:18.6]} 35... Qxa8+ {[%clk 0:00:43.9]} 36. Kh2 {[%clk
0:00:18.6]} 36... Nxe5 {[%clk 0:00:43]} 37. Qxd4 {[%clk 0:00:17.5]} 37... Nf3+
{[%clk 0:00:42.5]} 38. Rxf3 {[%clk 0:00:17.9]} 38... Qxf3 {[%clk 0:00:43.4]} 39.
Qxd6 {[%clk 0:00:15.4]} 39... Qg3+ {[%clk 0:00:39.1]} 40. Kh1 {[%clk 0:00:15.4]}
40... Qxh3+ {[%clk 0:00:40]} 41. Kg1 {[%clk 0:00:16]} 41... Qxg4+ {[%clk
0:00:39.5]} 42. Kf2 {[%clk 0:00:13.6]} 42... Qg3+ {[%clk 0:00:38.7]} 43. Ke2
{[%clk 0:00:13.6]} 43... Qe3+ {[%clk 0:00:38.6]} 44. Kf1 {[%clk 0:00:13.3]}
44... Bh3# {[%clk 0:00:39.5]} 0-1

[Event "*** Titled Tuesday Blitz"]
[Site "Chess.com"]
[Date "2020.04.07"]
[Round "3"]
[White "Konavets"]
[Black "AttilaTurzo"]
[Result "1-0"]
[WhiteElo "3018"]
[BlackElo "2495"]
[TimeControl "180+1"]
[EndTime "13:30:06 PDT"]
[Termination "Konavets won by resignation"]

1. d4 {[%clk 0:03:00.9]} 1... Nf6 {[%clk 0:02:58]} 2. c4 {[%clk 0:03:00.8]} 2...
e6 {[%clk 0:02:55.3]} 3. Nc3 {[%clk 0:03:01]} 3... Bb4 {[%clk 0:02:54.5]} 4. e3
{[%clk 0:03:01.9]} 4... b6 {[%clk 0:02:47.9]} 5. Bd2 {[%clk 0:02:59.6]} 5... O-O
{[%clk 0:02:29.3]} 6. Nf3 {[%clk 0:02:54.6]} 6... Bxc3 {[%clk 0:02:27.4]} 7.
Bxc3 {[%clk 0:02:53.7]} 7... Ne4 {[%clk 0:02:27.5]} 8. Bb4 {[%clk 0:02:49.5]}
8... c5 {[%clk 0:02:25.8]} 9. Bd3 {[%clk 0:02:49.2]} 9... Nxf2 {[%clk 0:02:15]}
10. Kxf2 {[%clk 0:02:49]} 10... cxb4 {[%clk 0:02:12.7]} 11. h4 {[%clk
0:02:49.9]} 11... h6 {[%clk 0:02:07.6]} 12. Rh3 {[%clk 0:02:40.9]} 12... f5
{[%clk 0:02:01.6]} 13. Ne5 {[%clk 0:02:39.3]} 13... Nc6 {[%clk 0:01:54.4]} 14.
Ng6 {[%clk 0:02:39.4]} 14... Rf6 {[%clk 0:01:50.5]} 15. Rg3 {[%clk 0:02:39.5]}
15... Rxg6 {[%clk 0:01:30.7]} 16. Rxg6 {[%clk 0:02:38.5]} 16... Qxh4+ {[%clk
0:01:28.5]} 17. Rg3 {[%clk 0:02:37.2]} 17... Nxd4 {[%clk 0:01:20.8]} 18. Qh1
{[%clk 0:02:30.8]} 18... Qxh1 {[%clk 0:01:13.8]} 19. Rxh1 {[%clk 0:02:31.7]}
19... Nc6 {[%clk 0:01:08.4]} 20. Rxh6 {[%clk 0:02:31.3]} 20... Ne5 {[%clk
0:01:08.5]} 21. Be2 {[%clk 0:02:26.6]} 21... Bb7 {[%clk 0:01:02.5]} 22. Rh4
{[%clk 0:02:25.8]} 22... Be4 {[%clk 0:00:53.1]} 23. Rh1 {[%clk 0:02:14.5]} 23...
Rc8 {[%clk 0:00:48.4]} 24. b3 {[%clk 0:02:13.3]} 24... a5 {[%clk 0:00:45.2]} 25.
Rgh3 {[%clk 0:02:12.7]} 25... Kf7 {[%clk 0:00:44]} 26. Bf3 {[%clk 0:01:59.8]}
26... d5 {[%clk 0:00:21.3]} 27. Bxe4 {[%clk 0:01:53.4]} 27... dxe4 {[%clk
0:00:18.4]} 28. Rh8 {[%clk 0:01:53.2]} 28... Nd3+ {[%clk 0:00:12.6]} 29. Ke2
{[%clk 0:01:52.5]} 29... Rxh8 {[%clk 0:00:09.3]} 30. Rxh8 {[%clk 0:01:51.9]}
30... Nc1+ {[%clk 0:00:10.2]} 31. Kd2 {[%clk 0:01:52.4]} 31... Nxa2 {[%clk
0:00:11.1]} 32. Rb8 {[%clk 0:01:52.3]} 32... e5 {[%clk 0:00:05.7]} 33. Rxb6
{[%clk 0:01:51.5]} 33... f4 {[%clk 0:00:06.2]} 34. c5 {[%clk 0:01:52]} 34... f3
{[%clk 0:00:04.1]} 35. gxf3 {[%clk 0:01:50.3]} 35... exf3 {[%clk 0:00:05]} 36.
e4 {[%clk 0:01:40.3]} 36... Nc3 {[%clk 0:00:04.6]} 37. Ke3 {[%clk 0:01:39.3]}
37... a4 {[%clk 0:00:02]} 38. Rb7+ {[%clk 0:01:36.4]} 38... Ke6 {[%clk
0:00:01.4]} 39. bxa4 {[%clk 0:01:37.1]} 39... Nxa4 {[%clk 0:00:01.4]} 40. c6
{[%clk 0:01:36.6]} 40... Kd6 {[%clk 0:00:01.6]} 41. Rxb4 {[%clk 0:01:36.2]}
41... Nc5 {[%clk 0:00:01]} 42. Kxf3 {[%clk 0:01:32.3]} 42... Kxc6 {[%clk
0:00:01.6]} 43. Rb1 {[%clk 0:01:32.2]} 43... Ne6 {[%clk 0:00:02.2]} 44. Rg1
{[%clk 0:01:32.1]} 44... Kd6 {[%clk 0:00:03.1]} 45. Ke3 {[%clk 0:01:32.6]} 45...
Ke7 {[%clk 0:00:03.4]} 46. Rf1 {[%clk 0:01:32.7]} 46... g6 {[%clk 0:00:03.9]}
47. Kd3 {[%clk 0:01:32.7]} 47... Nf4+ {[%clk 0:00:04.4]} 48. Ke3 {[%clk
0:01:33.1]} 48... Kf6 {[%clk 0:00:05.3]} 49. Rg1 {[%clk 0:01:33]} 49... g5
{[%clk 0:00:05.1]} 50. Kf3 {[%clk 0:01:33.4]} 50... Kg6 {[%clk 0:00:05.4]} 51.
Kg4 {[%clk 0:01:33.9]} 51... Nh5 {[%clk 0:00:05]} 52. Rf1 {[%clk 0:01:31]} 52...
Nf6+ {[%clk 0:00:05.9]} 53. Kf3 {[%clk 0:01:31.7]} 53... g4+ {[%clk 0:00:06.2]}
54. Ke3 {[%clk 0:01:32.3]} 54... Nh5 {[%clk 0:00:05]} 55. Rf5 {[%clk 0:01:32.2]}
55... g3 {[%clk 0:00:03.8]} 56. Kf3 {[%clk 0:01:31.8]} 56... Ng7 {[%clk
0:00:03]} 57. Rxe5 {[%clk 0:01:31.9]} 57... Kf6 {[%clk 0:00:03.9]} 58. Ra5
{[%clk 0:01:31.7]} 58... Ne6 {[%clk 0:00:04.8]} 59. Kxg3 {[%clk 0:01:31.9]}
59... Ng5 {[%clk 0:00:05]} 60. Kf4 {[%clk 0:01:31.8]} 60... Ne6+ {[%clk
0:00:05.5]} 61. Ke3 {[%clk 0:01:32.4]} 61... Ke7 {[%clk 0:00:04.8]} 62. e5
{[%clk 0:01:32.2]} 62... Kd7 {[%clk 0:00:04.6]} 63. Ke4 {[%clk 0:01:32.1]} 63...
Ke7 {[%clk 0:00:04.6]} 64. Ra7+ {[%clk 0:01:31.9]} 64... Kd8 {[%clk 0:00:04.6]}
65. Kd5 {[%clk 0:01:32.1]} 65... Nc7+ {[%clk 0:00:04.3]} 66. Rxc7 {[%clk
0:01:32.2]} 66... Kxc7 {[%clk 0:00:05.2]} 67. Ke6 {[%clk 0:01:33.1]} 67... Kd8
{[%clk 0:00:05.6]} 68. Kf7 {[%clk 0:01:34]} 68... Kd7 {[%clk 0:00:05.1]} 69. e6+
{[%clk 0:01:34.9]} 1-0